bitfinex-derivatives/quotes_ETHF0:USTF0_20250824
["timestamp","ask_amount","ask_price","bid_price","bid_amount"]
[1756072867408,3.2078,4788.7,4787.2,20.109]
[1756072867607,0.472,4787.8,4787.2,20.109]
[1756072868407,0.3672,4787.7,4786.9,3.2078]
[1756072868613,0.472,4787.3,4787.0,20.109]
[1756072868807,0.472,4787.2,4787.0,20.109]
[1756072869014,3.2078,4787.4,4787.0,20.109]
[1756072869204,0.4732,4787.1,4785.8,3.2078]
[1756072869515,0.20184631,4789.8,4785.9,20.11]
[1756072869516,0.472,4786.8,4785.9,20.11]
[1756072870409,0.472,4786.8,4785.8,3.2078]
[1756072870609,0.472,4786.8,4785.9,20.103]
[1756072871112,1.3124,4786.8,4785.1,3.2078]
[1756072871320,1.3124,4785.7,4785.1,16.797]
[1756072871503,1.3124,4785.6,4784.2,0.41809]
[1756072871709,3.2078,4785.9,4784.2,0.41809]
[1756072871710,3.2078,4785.4,4784.3,20.107]
[1756072872002,3.2078,4785.4,4784.4,20.107]
[1756072872208,31.92676767,4788.7,4784.4,20.107]
[1756072872209,0.9452,4786.4,4786.2,0.41791]
[1756072872404,0.472,4787.2,4787.1,0.41783]
[1756072872707,0.472,4788.5,4787.9,0.41775]
[1756072872909,0.472,4789.1,4788.3,0.41772]
[1756072873219,0.472,4789.7,4788.9,0.41767]
[1756072873509,0.472,4789.7,4788.8,3.2078]
[1756072873714,3.6798,4790.3,4789.7,0.4176]
[1756072873916,0.3672,4791.2,4789.8,20.56359]
[1756072874221,3.6798,4791.8,4791.3,0.41747]
[1756072874514,3.2078,4791.8,4791.4,20.17]
[1756072874722,0.9452,4791.6,4791.5,20.17]
[1756072875714,0.472,4791.6,4791.5,20.17]
[1756072875916,0.472,4791.5,4791.3,0.41746]
[1756072876116,0.472,4791.5,4791.4,20.162]
[1756072877319,0.9452,4791.5,4791.4,20.162]
[1756072877517,0.472,4791.3,4790.1,0.41757]
[1756072877718,0.472,4791.0,4789.8,0.41759]
[1756072878023,1.3124,4790.5,4789.9,20.144]
[1756072878223,3.2078,4791.1,4789.9,20.144]
[1756072878416,0.3672,4790.3,4789.9,20.144]
[1756072878619,1.3124,4790.0,4788.8,0.41768]
[1756072878815,0.4732,4789.7,4788.2,30.07]
[1756072879023,0.9452,4789.4,4788.3,20.55872]
[1756072879213,0.3672,4789.3,4788.3,20.55872]
[1756072879419,0.472,4789.2,4788.3,20.141]
[1756072879625,0.472,4789.0,4788.2,30.48773]
[1756072879824,0.3672,4788.9,4788.3,20.153]
[1756072880013,1.3124,4788.3,4787.2,3.2078]
[1756072880220,0.9452,4787.5,4786.7,20.163]
[1756072880414,1.3124,4787.0,4786.2,30.07]
[1756072880716,0.9452,4786.4,4785.8,20.17]
[1756072880923,0.8392,4785.8,4785.3,20.17]
[1756072881122,0.9452,4785.7,4785.3,20.17]
[1756072881417,0.472,4787.1,4785.3,20.17]
[1756072881626,0.472,4787.1,4785.9,0.41793]
[1756072881818,0.472,4787.1,4785.5,1.04493]
[1756072882019,3.6798,4786.9,4786.6,0.41787]
[1756072882223,3.6798,4786.9,4786.7,20.192]
[1756072882625,0.472,4786.8,4786.7,20.192]
[1756072883020,3.2078,4786.9,4786.7,20.192]
[1756072883316,0.472,4787.4,4787.1,0.41783]
[1756072883517,0.472,4788.2,4787.1,0.41783]
[1756072883718,0.472,4788.2,4786.9,0.41785]
[1756072883927,0.472,4788.2,4786.7,20.192]
[1756072883928,0.472,4788.2,4787.1,0.41783]
[1756072884127,0.472,4788.2,4787.5,0.41779]
[1756072884323,0.472,4788.2,4787.7,0.41778]
[1756072884630,0.3672,4789.0,4787.8,20.219]
[1756072884826,0.9452,4789.2,4787.9,20.226]
[1756072885026,0.9452,4789.2,4788.5,0.41771]
[1756072885322,0.472,4789.2,4788.9,0.41767]
[1756072885826,0.9452,4789.9,4788.6,23.4298]
[1756072886224,0.9452,4789.9,4789.2,0.41764]
[1756072886421,0.9452,4789.9,4789.3,20.224]
[1756072886621,0.4732,4789.9,4789.3,20.224]
[1756072886829,0.472,4789.8,4789.0,0.41767]
[1756072887124,1.3124,4789.5,4789.4,20.218]
[1756072887727,1.3124,4789.5,4788.6,3.2078]
[1756072888026,0.985,4789.3,4789.2,20.22]
[1756072888331,0.985,4789.3,4789.2,20.213]
[1756072888532,0.4845,4789.2,4788.9,20.21]
[1756072888831,0.4845,4788.9,4788.0,3.62555]
[1756072889024,3.2078,4788.3,4787.0,0.41783]
[1756072889225,30.077,4789.9,4785.9,0.41793]
[1756072889226,0.4845,4787.0,4785.9,0.41793]
[1756072889431,0.4845,4786.9,4785.7,20.235]
[1756072889732,0.985,4786.5,4784.6,0.41804]
[1756072889928,3.2078,4785.1,4783.7,3.2078]
[1756072890124,1.3632,4784.5,4782.3,3.2078]
[1756072890423,3.2078,4784.6,4781.8,2.445]
[1756072890424,0.5005,4784.1,4781.8,2.445]
[1756072890622,3.2078,4782.5,4781.3,3.2078]
[1756072890827,0.8787,4782.3,4781.2,20.329]
[1756072891028,0.5005,4782.1,4781.2,20.329]
[1756072891229,0.4845,4782.0,4781.2,20.329]
[1756072891739,0.4845,4782.0,4781.2,20.74735]
[1756072891929,3.2078,4782.5,4782.2,0.41826]
[1756072892133,0.5005,4782.8,4782.3,20.34]
[1756072892433,0.4845,4782.6,4782.3,0.41825]
[1756072892635,0.4845,4782.6,4782.5,0.41823]
[1756072892930,30.076,4785.1,4782.5,0.41823]
[1756072892931,0.5005,4784.4,4782.5,31.13559]
[1756072893237,0.4845,4784.5,4782.7,3.2078]
[1756072893533,0.4845,4785.5,4784.4,0.41806]
[1756072893725,0.4845,4785.5,4784.6,0.41805]
[1756072893925,0.4845,4785.5,4784.5,20.388]
[1756072893926,0.4845,4785.5,4784.8,0.41803]
[1756072894334,0.5005,4785.7,4784.5,20.388]
[1756072894531,0.985,4785.7,4785.0,0.41801]
[1756072894726,0.985,4785.7,4785.2,0.418]
[1756072894924,0.4845,4785.6,4785.4,0.41797]
[1756072895124,3.2078,4786.2,4785.1,20.398]
[1756072895330,0.5005,4786.5,4785.8,0.41794]
[1756072895331,0.4845,4786.1,4785.8,0.41794]
[1756072895733,0.4845,4787.0,4786.6,0.41787]
[1756072895930,0.4845,4787.0,4786.8,0.41786]
[1756072896123,0.4845,4788.3,4786.6,1.04469]
[1756072896331,0.61518362,4788.2,4787.6,0.41778]
[1756072896523,0.4845,4788.3,4787.8,0.41777]
[1756072896728,0.4845,4788.1,4787.8,0.41777]
[1756072896933,3.7083,4788.9,4788.5,0.41771]
[1756072897236,0.4845,4788.8,4788.6,0.41769]
[1756072898035,0.4845,4788.7,4788.6,0.41769]
[1756072898336,0.3782,4788.3,4787.0,3.2078]
[1756072898537,1.3632,4787.9,4787.1,0.41782]
[1756072898832,0.4845,4787.8,4787.1,0.41782]
[1756072899339,0.4845,4787.8,4787.0,3.2078]
[1756072899635,0.4845,4787.8,4787.2,0.4178]
[1756072899934,0.4845,4787.8,4787.0,3.2078]
[1756072900330,0.4845,4787.8,4787.1,0.41782]
[1756072900932,3.2078,4788.0,4787.3,0.4178]
[1756072901131,1.3632,4787.6,4787.3,0.4178]
[1756072901331,0.3782,4787.5,4787.3,0.4178]
[1756072901536,3.6923,4788.0,4787.9,0.41775]
[1756072901835,0.4845,4788.0,4787.9,0.41775]
[1756072902142,3.2078,4788.6,4787.9,0.41775]
[1756072902143,0.4845,4788.6,4788.5,0.41769]
[1756072902330,3.6923,4789.2,4789.0,0.41763]
[1756072902526,0.4845,4789.9,4788.5,21.41621]
[1756072902728,0.1,4790.2,4790.1,0.41755]
[1756072903036,0.1,4790.2,4790.1,20.81455]
[1756072903429,0.1,4790.2,4790.1,0.41755]
[1756072903632,0.1,4790.2,4789.3,3.2078]
[1756072903828,0.4845,4789.9,4788.5,3.2078]
[1756072904033,0.5005,4789.5,4788.2,20.434]
[1756072904232,1.3632,4788.7,4787.3,20.458]
[1756072904537,0.4845,4788.2,4786.9,50.547]
[1756072904737,1.3632,4788.2,4787.4,0.41778]
[1756072904935,0.5005,4788.9,4787.7,0.41775]
[1756072905140,0.6159229,4788.8,4787.8,20.467]
[1756072905339,3.2078,4788.2,4784.1,2.09034]
[1756072905536,0.985,4787.0,4785.3,0.41796]
[1756072905737,0.4845,4786.9,4785.4,20.474]
[1756072905933,0.61600489,4786.8,4786.3,0.41787]
[1756072906128,1.86176767,4789.3,4786.3,0.41787]
[1756072906129,0.4845,4787.7,4786.4,20.471]
[1756072906336,0.5005,4788.4,4787.8,0.41774]
[1756072906537,0.4845,4789.5,4788.3,3.2078]
[1756072906731,0.61692881,4789.4,4788.4,20.529]
[1756072906933,0.5845,4790.2,4789.0,3.2078]
[1756072907133,0.61509726,4790.1,4789.0,3.2078]
[1756072907439,0.61509726,4790.0,4789.0,3.2078]
[1756072907737,0.61509726,4789.9,4789.1,20.53]
[1756072908040,0.1,4790.2,4790.0,0.41755]
[1756072908243,0.1,4790.2,4790.1,20.519]
[1756072908544,0.1,4790.2,4790.1,23.7268]
[1756072908935,0.1,4790.2,4789.1,3.2078]
[1756072909133,0.4845,4789.9,4789.1,3.2078]
[1756072909337,0.8627,4789.1,4787.9,30.086]
[1756072909643,3.2078,4788.6,4787.9,30.086]
[1756072909841,1.97852403,4788.5,4787.9,30.086]
[1756072910038,0.61532403,4788.4,4786.8,3.62562]
[1756072910233,0.4845,4788.0,4786.9,20.547]
[1756072910438,0.4845,4787.8,4786.8,3.2078]
[1756072910638,0.4845,4787.5,4786.4,50.637]
[1756072910845,0.61520365,4787.4,4786.4,50.637]
[1756072911043,3.2078,4787.6,4786.4,50.637]
[1756072911044,1.3632,4787.2,4786.4,30.086]
[1756072911338,0.61515393,4787.1,4786.4,50.633]
[1756072911540,0.61515393,4787.0,4786.4,50.633]
[1756072911737,0.61515393,4786.9,4786.4,50.633]
[1756072911934,30.08,4789.4,4786.4,50.633]
[1756072911935,0.4845,4788.1,4786.4,53.8408]
[1756072912134,0.4845,4789.1,4787.7,3.2078]
[1756072912336,0.61569302,4789.0,4787.8,20.563]
[1756072912544,0.61569302,4788.9,4788.2,0.4177]
[1756072912749,0.61569302,4788.8,4788.2,0.4177]
[1756072912946,3.2078,4789.4,4788.2,0.4177]
[1756072913146,0.61594492,4789.3,4788.3,0.41769]
[1756072913348,0.61594492,4789.2,4788.2,3.2078]
[1756072913646,1.10044492,4789.1,4788.3,20.567]
[1756072913847,1.11644492,4789.0,4788.4,20.567]
[1756072914049,0.61594492,4788.9,4788.4,20.567]
[1756072914347,0.61594492,4788.8,4788.4,20.98469]
[1756072914548,0.61594492,4788.7,4788.4,20.567]
[1756072914748,3.6923,4789.4,4788.4,20.567]
[1756072914946,0.61611284,4789.3,4788.4,20.567]
[1756072915250,0.61611284,4789.2,4788.4,20.98469]
[1756072915449,0.61611284,4789.1,4788.5,0.4177]
[1756072915745,0.61611284,4789.0,4788.6,20.564]
[1756072915950,3.2078,4788.7,4788.3,20.555]
[1756072916142,3.2078,4788.7,4788.3,20.553]
[1756072916347,1.3632,4788.4,4788.3,20.553]
[1756072916545,1.3632,4788.4,4788.2,30.083]
[1756072916746,5.3632,4788.3,4786.9,3.62562]
[1756072916947,0.4845,4788.0,4787.0,20.558]
[1756072917142,0.6162526,4787.9,4786.9,3.2078]
[1756072917451,0.5005,4787.9,4787.1,20.97182]
[1756072917643,0.4845,4788.0,4787.1,20.554]
[1756072917846,4.1484,4788.7,4788.2,0.4177]
[1756072918041,0.61637912,4788.6,4788.3,20.543]
[1756072918245,3.2078,4788.7,4788.3,20.543]
[1756072918549,3.2078,4789.3,4788.4,20.549]
[1756072918847,0.61647459,4789.2,4788.2,0.41771]
[1756072919145,0.9406,4788.7,4786.9,3.2078]
[1756072919352,3.2078,4788.2,4787.0,0.41781]
[1756072919545,0.4778,4788.0,4787.1,20.558]
[1756072920453,0.4778,4788.0,4785.3,20.89841]
[1756072920454,0.9406,4787.6,4786.3,3.2078]
[1756072920651,1.3001,4786.7,4785.3,33.2888]
[1756072920948,3.2078,4786.3,4785.4,20.556]
[1756072921354,3.2078,4786.3,4785.5,20.558]
[1756072921852,3.2078,4787.3,4785.8,3.2078]
[1756072922149,0.4778,4788.6,4786.6,3.2078]
[1756072922349,3.2078,4788.3,4787.1,0.41782]
[1756072922547,0.4778,4788.1,4787.2,20.581]
[1756072922753,0.4628,4787.1,4785.7,3.2078]
[1756072922953,3.2078,4786.8,4786.1,0.41791]
[1756072923154,0.6161149,4786.7,4786.2,21.0159]
[1756072923361,0.4778,4787.0,4786.5,0.41788]
[1756072923559,0.61677636,4786.9,4786.5,0.41788]
[1756072923761,3.2078,4787.1,4786.2,20.598]
[1756072924059,0.61669703,4787.0,4786.3,0.4179]
[1756072924358,0.61669703,4786.9,4786.2,20.598]
[1756072924559,0.4778,4787.6,4786.2,20.598]
[1756072924754,0.61705167,4787.5,4786.2,20.598]
[1756072924952,0.61705167,4787.4,4786.3,0.41789]
[1756072925254,0.61705167,4787.3,4786.5,1.0447]
[1756072925451,0.4778,4788.5,4787.8,0.41776]
[1756072925656,0.61761869,4788.4,4787.9,20.591]
[1756072925859,0.9406,4787.9,4787.5,20.598]
[1756072926056,0.3595,4787.6,4785.9,0.41793]
[1756072926257,0.4778,4786.6,4785.8,3.2078]
[1756072926459,1.3001,4786.2,4785.2,30.086]
[1756072926655,1.3001,4786.2,4783.5,1.04536]
[1756072926656,0.4778,4785.3,4784.2,0.41807]
[1756072926852,0.4778,4785.1,4784.3,20.613]
[1756072927051,3.2078,4784.4,4783.8,50.698]
[1756072927261,0.4778,4784.3,4783.5,23.8188]
[1756072927457,3.2078,4784.4,4784.3,0.41807]
[1756072927759,0.4778,4785.8,4785.1,0.418]
[1756072927958,0.4778,4785.6,4785.2,21.02598]
[1756072928162,0.4778,4785.5,4785.4,0.41798]
[1756072928357,3.2078,4786.0,4785.8,0.41794]
[1756072928550,0.4628,4786.4,4785.9,20.606]
[1756072928757,0.8223,4785.8,4784.4,20.611]
[1756072928957,1.3001,4785.3,4784.2,33.2938]
[1756072929162,3.2078,4784.9,4784.3,20.625]
[1756072929456,3.2078,4784.9,4784.2,33.2938]
[1756072929656,1.91534296,4784.8,4784.2,50.706]
[1756072929967,0.4778,4784.8,4784.7,0.41804]
[1756072930263,0.4778,4785.4,4785.0,0.418]
[1756072930463,1.09311875,4785.3,4785.1,20.619]
[1756072930653,3.6706,4785.5,4785.1,20.619]
[1756072930851,0.61510862,4785.4,4785.0,0.41801]
[1756072931051,1.07775819,4785.3,4783.7,3.2078]
[1756072931361,0.8223,4784.6,4783.7,3.2078]
[1756072931559,1.3001,4784.4,4783.7,20.616]
[1756072931861,1.3001,4783.7,4783.1,20.619]
[1756072932262,0.4778,4783.1,4782.7,30.092]
[1756072932566,0.8223,4782.9,4781.6,3.2078]
[1756072932764,0.4778,4782.0,4780.3,3.2078]
[1756072932956,0.4778,4782.0,4780.5,1.04601]
[1756072932957,3.2078,4781.7,4780.5,1.04601]
[1756072933259,0.4628,4783.0,4781.1,1.04588]
[1756072933562,0.4628,4783.0,4781.6,1.04577]
[1756072933563,0.4778,4782.9,4781.6,1.04577]
[1756072933863,0.4778,4783.7,4782.6,1.04555]
[1756072934061,3.2078,4783.9,4783.8,0.41811]
[1756072934363,3.2078,4783.9,4783.8,21.05711]
[1756072934657,0.4778,4784.4,4783.6,30.102]
[1756072934852,3.2078,4784.0,4783.1,3.62597]
[1756072935058,3.2078,4784.0,4783.2,20.646]
[1756072935258,0.4778,4783.9,4783.1,21.06917]
[1756072935663,0.4628,4783.8,4783.2,20.642]
[1756072935962,0.4628,4783.8,4783.3,20.642]
[1756072936165,0.9406,4783.9,4782.6,3.2078]
[1756072936560,0.9406,4783.9,4782.7,20.629]
[1756072936863,0.9406,4783.9,4783.4,0.41814]
[1756072937062,1.49504096,4786.2,4782.7,20.629]
[1756072937063,3.2078,4784.5,4784.4,0.41806]
[1756072937263,3.6856,4784.5,4784.4,21.03806]
[1756072937560,3.2078,4785.1,4785.0,0.41801]
[1756072937759,3.6856,4785.1,4785.0,21.04601]
[1756072938155,3.2078,4785.1,4785.0,21.07701]
[1756072938565,0.4778,4786.0,4785.9,0.41793]
[1756072938756,3.2078,4786.0,4785.9,21.07393]
[1756072938957,3.2078,4786.0,4785.9,25.06793]
[1756072939169,0.4778,4786.7,4785.9,4.0]
[1756072939170,3.2078,4786.5,4785.9,4.0]
[1756072939362,3.2078,4786.5,4785.8,1.04485]
[1756072939363,4.0451,4786.5,4785.8,1.04485]
[1756072939660,0.9406,4785.7,4784.3,0.41807]
[1756072939869,0.4778,4785.1,4784.5,0.41805]
[1756072940561,0.4778,4785.1,4785.0,0.41801]
[1756072940755,0.3595,4786.2,4784.4,1.04516]
[1756072940756,0.9406,4786.0,4785.9,0.41793]
[1756072940954,3.2078,4786.2,4786.1,0.41791]
[1756072941162,0.4778,4786.7,4785.9,20.668]
[1756072941558,0.4778,4786.6,4785.1,30.102]
[1756072941760,0.9406,4785.5,4784.3,0.41806]
[1756072941961,0.4778,4785.3,4784.2,0.41808]
[1756072942260,0.4628,4785.2,4784.1,20.672]
[1756072942455,3.6856,4784.3,4783.2,0.41816]
[1756072942658,0.3595,4784.1,4783.1,30.52017]
[1756072943063,0.4778,4784.0,4783.1,30.52017]
[1756072943366,0.4628,4783.9,4781.9,3.2078]
[1756072943664,1.49504096,4786.0,4781.9,3.2078]
[1756072943665,0.4778,4783.0,4782.0,21.09227]
[1756072944061,0.4778,4783.0,4782.0,0.41827]
[1756072944368,3.2078,4782.7,4782.1,0.41825]
[1756072944763,3.2078,4782.7,4782.0,0.41826]
[1756072944961,3.2078,4782.7,4781.9,20.672]
[1756072945268,3.2078,4782.7,4782.0,20.663]
[1756072945561,3.2078,4782.7,4782.1,20.663]
[1756072945963,3.6856,4783.7,4782.1,20.663]
[1756072946267,0.60812758,4783.6,4782.7,0.41821]
[1756072946565,0.6083569,4783.5,4781.6,3.2078]
[1756072946761,0.3595,4782.7,4781.6,3.2078]
[1756072946960,0.3595,4782.7,4781.6,3.6261]
[1756072947164,0.4778,4782.8,4781.6,3.6261]
[1756072947165,0.4778,4782.8,4781.6,3.2078]
[1756072947369,0.3595,4782.7,4781.6,3.2078]
[1756072947567,3.2078,4781.7,4780.9,30.101]
[1756072947762,0.4778,4782.4,4781.8,0.41828]
[1756072947962,0.4778,4782.4,4781.6,20.65]
[1756072948160,3.2078,4782.8,4781.6,20.65]
[1756072948161,3.2078,4782.8,4781.7,1.04575]
[1756072948363,0.60841104,4782.7,4782.6,0.41822]
[1756072948565,0.4601,4783.9,4782.6,0.41822]
[1756072948566,3.2078,4783.7,4782.6,20.689]
[1756072948770,0.4575,4782.9,4781.5,3.2078]
[1756072948962,0.3474,4782.7,4781.5,3.2078]
[1756072949169,3.2078,4782.5,4782.3,0.41824]
[1756072949366,0.4601,4782.9,4781.5,23.9298]
[1756072949566,0.4601,4782.9,4782.3,0.41824]
[1756072949769,3.2078,4782.6,4781.6,0.4183]
[1756072950065,3.2078,4782.6,4781.7,0.41829]
[1756072950066,0.8049,4782.5,4781.7,0.41829]
[1756072950265,3.2078,4783.2,4782.4,0.41824]
[1756072950461,0.60875041,4783.1,4782.6,0.41821]
[1756072950666,1.06625041,4783.0,4782.6,0.41821]
[1756072950873,1.86176767,4785.1,4781.5,3.2078]
[1756072950874,1.265,4782.8,4781.5,3.2078]
[1756072951069,0.9176,4782.3,4781.5,3.2078]
[1756072951375,1.06625041,4782.2,4781.5,3.2078]
[1756072951565,0.60875041,4782.1,4781.5,3.2078]
[1756072951771,1.265,4781.8,4780.3,3.2078]
[1756072951973,0.4575,4782.0,4781.9,0.41828]
[1756072952171,0.3474,4782.0,4780.4,2.77867652]
[1756072952369,0.4601,4781.9,4781.2,0.41833]
[1756072952674,1.49504096,4783.7,4780.3,3.2078]
[1756072952675,0.4575,4781.5,4780.3,3.2078]
[1756072952969,0.8075,4780.3,4778.9,3.2078]
[1756072953269,1.265,4779.7,4778.8,0.41855]
[1756072953476,30.113,4781.6,4777.7,4.25442]
[1756072953477,0.4575,4780.4,4778.9,20.784]
[1756072953668,3.5552,4781.0,4780.5,0.4184]
[1756072953669,3.2078,4781.0,4780.5,0.4184]
[1756072953862,0.60773955,4780.9,4780.7,0.41838]
[1756072954067,3.2078,4781.0,4780.0,3.2078]
[1756072954264,0.4575,4780.9,4780.1,20.814]
[1756072954466,1.06597864,4780.8,4780.0,3.2078]
[1756072954665,0.60587864,4780.7,4779.4,0.41849]
[1756072954866,0.4575,4780.6,4779.3,1.04627]
[1756072955072,3.2078,4781.0,4779.3,1.04627]
[1756072955073,0.9176,4782.3,4779.8,20.92341]
[1756072955267,0.9176,4782.3,4781.3,0.41832]
[1756072955470,3.2078,4782.1,4781.2,20.842]
[1756072955774,0.4183,4781.7,4780.6,30.118]
[1756072956167,3.2078,4782.1,4781.1,3.2078]
[1756072956362,0.41824,4782.4,4781.1,3.2078]
[1756072956569,0.41824,4782.4,4781.2,21.27033]
[1756072956570,0.41826,4782.1,4781.2,21.27033]
[1756072956875,0.4575,4782.0,4781.7,0.41829]
[1756072957175,0.9176,4783.6,4781.8,0.41829]
[1756072957469,0.4575,4783.6,4782.4,3.2078]
[1756072957772,0.4575,4783.6,4783.3,0.41816]
[1756072958672,0.4575,4783.6,4774.1,0.15435223]
[1756072958673,0.3474,4783.1,4781.4,0.41832]
[1756072958870,3.2078,4783.4,4781.8,3.2078]
[1756072959061,0.3474,4783.5,4782.2,0.41825]
[1756072959262,0.9176,4783.6,4782.0,1.04568]
[1756072959473,0.4575,4783.6,4783.0,0.41818]
[1756072959670,0.8049,4783.6,4782.3,3.2078]
[1756072959872,0.4575,4783.0,4782.3,3.2078]
[1756072960069,0.4575,4783.8,4782.4,30.12]
[1756072960372,0.4575,4783.8,4782.8,0.4182]
[1756072960571,0.4575,4783.8,4782.5,20.922]
[1756072960773,3.2078,4784.4,4783.0,3.2078]
[1756072961066,3.2078,4784.4,4784.3,0.41807]
[1756072961267,3.6653,4784.4,4784.3,0.41807]
[1756072961471,3.6653,4784.4,4783.0,3.2078]
[1756072961472,0.4575,4784.3,4783.0,3.2078]
[1756072961673,0.4601,4784.2,4782.5,1.04557]
[1756072961864,3.2078,4784.4,4784.2,0.41808]
[1756072962271,0.4575,4785.1,4785.0,0.41801]
[1756072962469,0.4601,4785.7,4785.0,0.41801]
[1756072962867,0.4601,4785.7,4783.9,24.1458]
[1756072962868,0.4575,4785.6,4784.1,20.938]
[1756072963074,0.4575,4785.3,4784.1,20.938]
[1756072963268,0.4575,4785.3,4784.4,0.41805]
[1756072963575,0.4575,4785.3,4784.2,0.41808]
[1756072963774,0.3474,4784.5,4783.0,20.924]
[1756072964082,3.2078,4783.8,4782.4,30.12]
[1756072964278,0.4575,4783.7,4783.2,0.41816]
[1756072964482,0.4575,4784.4,4782.6,0.41822]
[1756072964779,3.2078,4783.6,4782.4,30.12]
[1756072964975,0.4575,4783.4,4782.4,30.53824]
[1756072965175,0.4575,4784.0,4782.9,0.41819]
[1756072965377,0.4575,4784.0,4782.4,30.12]
[1756072965576,0.4575,4784.0,4782.8,3.2078]
[1756072965781,0.4575,4784.0,4783.1,0.41817]
[1756072965976,3.2078,4783.7,4782.4,30.12]
[1756072966176,0.9176,4783.6,4782.7,0.41821]
[1756072966682,0.8049,4783.5,4782.4,30.12]
[1756072966874,0.4575,4783.1,4782.5,20.936]
[1756072967273,0.4575,4783.1,4782.6,0.41822]
[1756072967478,0.4575,4784.0,4783.0,0.41818]
[1756072967674,0.4575,4784.0,4782.5,24.936]
[1756072967675,0.59836302,4783.9,4783.4,0.41814]
[1756072967877,0.4575,4784.0,4783.4,0.41814]
[1756072968078,3.2078,4784.6,4782.8,3.2078]
[1756072968281,0.59847755,4784.5,4782.8,3.2078]
[1756072968483,3.2078,4784.1,4782.8,3.2078]
[1756072968781,0.4575,4783.9,4782.9,20.94]
[1756072969083,0.8075,4783.8,4782.8,3.2078]
[1756072969278,0.4575,4783.5,4782.7,20.932]
[1756072969476,0.4575,4783.5,4782.4,30.12]
[1756072969781,0.4575,4783.3,4782.4,30.12]
[1756072970179,0.4575,4783.3,4783.2,0.41817]
[1756072970478,3.2078,4783.6,4783.2,20.929]
[1756072970681,0.4601,4784.9,4783.6,0.41813]
[1756072970878,0.4575,4784.7,4783.6,0.41813]
[1756072971180,0.59934232,4784.6,4783.3,4.25319]
[1756072971370,0.59934232,4784.6,4783.8,3.2078]
[1756072971576,0.4575,4785.4,4783.8,3.2078]
[1756072971777,0.8075,4785.2,4783.8,3.2078]
[1756072971981,1.05741572,4785.1,4784.3,0.41807]
[1756072972181,0.59991572,4785.0,4784.3,0.41807]
[1756072972782,0.59991572,4785.0,4784.8,0.41802]
[1756072972976,4.1254,4785.9,4785.1,0.418]
[1756072973177,0.4575,4785.7,4784.3,33.3188]
[1756072973376,3.2078,4785.4,4784.4,20.921]
[1756072973578,0.4575,4785.3,4784.5,20.918]
[1756072973976,4.0153,4785.9,4785.0,0.41801]
[1756072974172,0.5999713,4785.8,4785.0,0.41801]
[1756072974376,4.0153,4785.9,4785.0,0.41801]
[1756072974575,0.59984013,4785.8,4785.0,0.41798]
[1756072974777,0.4575,4786.0,4784.8,3.2078]
[1756072975077,3.6679,4786.5,4784.8,3.2078]
[1756072975275,0.4575,4786.7,4784.9,3.81180885]
[1756072975479,0.8075,4787.2,4784.9,3.81180885]
[1756072975480,0.4601,4787.2,4786.2,0.41788]
[1756072975680,0.4601,4787.2,4786.3,20.901]
[1756072975887,0.4601,4787.2,4785.3,3.2078]
[1756072976083,0.3474,4786.6,4785.4,20.894]
[1756072976277,0.4601,4786.4,4784.8,3.2078]
[1756072976475,1.265,4786.0,4784.9,20.902]
[1756072977082,1.265,4786.0,4784.9,21.31999]
[1756072977284,1.265,4786.0,4785.0,0.418]
[1756072977889,0.4438,4786.7,4785.3,3.2078]
[1756072978280,0.4438,4786.7,4785.6,0.41793]
[1756072978481,0.4401,4786.6,4785.7,20.883]
[1756072978987,3.2078,4786.3,4785.7,20.883]
[1756072979187,0.8839,4786.1,4785.7,20.883]
[1756072979482,3.2078,4786.3,4785.4,20.875]
[1756072979689,0.4438,4785.7,4785.4,20.875]
[1756072979885,0.4438,4785.7,4785.3,3.2078]
[1756072980091,0.4401,4785.4,4784.8,20.87]
[1756072980485,0.4401,4786.2,4784.8,20.87]
[1756072980690,0.4401,4786.2,4784.8,21.288]
[1756072980888,0.4401,4786.2,4784.6,3.2078]
[1756072981092,1.2494,4785.8,4784.7,20.861]
[1756072981387,0.8056,4785.5,4784.3,30.111]
[1756072981592,0.4401,4785.3,4784.3,30.111]
[1756072981792,0.4401,4784.9,4784.3,50.972]
[1756072982288,3.5733,4786.3,4784.4,2.6680699]
[1756072982488,0.4401,4786.4,4784.5,3.2078]
[1756072982685,0.4401,4785.9,4784.5,3.2078]
[1756072982996,3.2078,4785.7,4784.6,21.28704]
[1756072983496,0.4401,4785.6,4784.7,20.871]
[1756072983684,3.2078,4784.8,4784.3,30.111]
[1756072983887,0.4401,4784.6,4784.3,30.111]
[1756072984295,0.4401,4784.5,4784.3,30.111]
[1756072984592,0.3655,4784.3,4782.7,3.2078]
[1756072984795,3.2078,4782.8,4782.2,0.1907505]
[1756072984999,0.4401,4782.9,4782.0,24.0828]
[1756072985191,0.4401,4782.9,4782.1,20.887]
[1756072985492,0.4401,4783.9,4782.6,3.2078]
[1756072985700,0.4401,4783.9,4782.8,0.41819]
[1756072985894,0.4401,4783.9,4782.5,0.41822]